Cogmind - Beta 11.1 *** ADVENTURER MODE // 2022.04.24 @ 22:29:16 Player: Big Tortoise Result: Destroyed by G-73 Enforcer with Phase Gun Performance ------------- Evolutions (8) 4000 Regions Visited (20) 4000 Robots Destroyed (400) 2000 Value Destroyed (22049) 22049 Prototype IDs (34) 680 Alien Tech Used (3) 600 Bonus (14639) 14639 TOTAL SCORE: 47968 Bonus ------- Triggered High Security 500 High Alert Combat Kills 9049 Follower Combat Kills 921 Entered Garrisons 1000 Used RIF Installer 2500 Entered DSFs 500 Hacked Protovariant 500 Scanned by Researcher 500 Friendly Fire -831 Cogmind --------- Core Integrity 0/1450 Matter 153/300 Energy 21/100 System Corruption 19% Temperature Cool (11) Movement Flying (27) Location -2/Testing Parts ------- > --- POWER (3) -------- (None) > --- PROPULSION (5) --- Cooled Linear Gravjet Improved Diametric Drive Improved Diametric Drive > --- UTILITY (11) ----- Experimental Heat Sink Advanced Targeting Computer Hacking Suite > --- WEAPON (4) ------- (None) > --- INVENTORY (5) ---- Antimatter Reactor Enhanced Armored Medium Treads Gamma Rifle Enhanced Quantum Rifle Enhanced Quantum Rifle Peak State ------------ > --- POWER ------------ Antimatter Reactor Light Quantum Reactor Light Quantum Reactor > --- PROPULSION ------- Improved Heavy Treads Advanced Heavy Treads > --- UTILITY ---------- Advanced Coolant Injector Large Storage Unit Matter Compressor Spectral Analyzer Advanced Target Analyzer Armor Integrity Analyzer Advanced Powered Armor Relay Coupler [NC] Relay Coupler [Grunt] System Purifier > --- WEAPON ----------- Improved KE Penetrator Heavy Hardcell Cannon Fusion Bomb Launcher > --- INVENTORY -------- Advanced Medium Treads Advanced Heat Sink Advanced Powered Armor Improved Remote Force Field Relay Coupler [NC] Relay Coupler [Grunt] Relay Coupler [Sentry] Relay Coupler [Sentry] Relay Coupler [Behemoth] Gamma Rifle Improved KE Penetrator Railgun Advanced Remote Datajack Advanced Remote Datajack [Rating: 150] Favorites ----------- Power Neutrino Core Engine Heavy Ion Engine Power Core Neutrino Core Reactor Light Quantum Reactor Propulsion Armored Treads Treads Armored Treads Leg Carbon-fiber Leg Wheel Centrium Wheel Hover Unit Improved Antigrav System Flight Unit Impulse Thruster Utility Large Storage Unit Device Advanced Heat Sink Storage Large Storage Unit Processor Armor Integrity Analyzer Hackware Relay Coupler [Grunt] Protection Advanced Powered Armor Weapon Improved Assault Rifle Energy Gun Medium Laser Energy Cannon Heavy Plasma Cannon Ballistic Gun Improved Assault Rifle Ballistic Cannon Hypervelocity Gauss Cannon Launcher Fusion Bomb Launcher Special Weapon Remote Datajack Build | -11 -10 -10 -9 -9 -9 -9 -7 -7 -6 -6 -6 -6 -5 -5 -4 -4 -3 -3 -2 -2 ------- Run | Scr Mat Min Mat Sto Gar Rec Fac DSF Fac Gar Fac Gar Fac Gar Fac Gar Res Qua Res Tes Slots Evolved 16 | . . . 2 . . . 4 . 2 . . . 2 . 2 . 2 . 2 . Power 2 | . . . . . . . . . 1 . . . . . . . 1 . . . Propulsion 3 | . . . . . . . 1 . . . . . 1 . . . . . 1 . Utility 9 | . . . 2 . . . 2 . 1 . . . . . 2 . 1 . 1 . Weapon 2 | . . . . . . . 1 . . . . . 1 . . . . . . . Parts Attached 300 | 6 3 1 12 14 2 . 3 10 7 21 7 21 19 4 12 27 40 50 33 8 Power 35 | 1 . . . 2 . . . . 2 4 1 2 2 . 2 3 7 5 3 1 Engine 12 | 1 . . . 1 . . . . 2 4 1 2 . . 1 . . . . . Core 4 | . . . . 1 . . . . . . . . . . . 3 . . . . Reactor 19 | . . . . . . . . . . . . . 2 . 1 . 7 5 3 1 Propulsion 69 | 2 . . 4 5 . . 1 2 . 8 . 8 5 3 3 2 7 6 8 5 Treads 48 | 2 . . 4 4 . . 1 2 . 5 . 4 4 1 3 2 7 6 2 1 Leg 11 | . . . . . . . . . . 3 . 4 1 2 . . . . 1 . Wheel 1 | . . . . . . . . . . . . . . . . . . . 1 . Hover 4 | . . . . . . . . . . . . . . . . . . . 3 1 Flight 5 | . . . . 1 . . . . . . . . . . . . . . 1 3 Utility 110 | 1 2 1 6 1 2 . 2 4 5 3 3 6 7 1 6 15 15 15 13 2 Device 50 | . 1 1 4 1 1 . . 2 2 2 2 2 3 . 4 7 6 5 6 1 Storage 7 | 1 1 . . . . . 2 . 1 . . . . . . . 1 . 1 . Processor 15 | . . . 1 . . . . 1 2 . 1 . 1 . 1 1 3 1 2 1 Hackware 18 | . . . . . . . . . . . . 1 2 1 1 3 4 3 3 . Protection 20 | . . . 1 . 1 . . 1 . 1 . 3 1 . . 4 1 6 1 . Artifact . | . . . . . . . . . . . . . . . . . . . . . Weapon 86 | 2 1 . 2 6 . . . 4 . 6 3 5 5 . 1 7 11 24 9 . Energy Gun 15 | 1 . . 1 . . . . . . 3 1 1 . . . 1 . 3 4 . Energy Cannon 2 | . . . . . . . . . . . . 1 . . . . . . 1 . Ballistic Gun 26 | 1 1 . 1 3 . . . 3 . . 1 . 2 . . 4 6 4 . . Ballistic Cannon 21 | . . . . 2 . . . 1 . 2 1 1 3 . . 2 1 8 . . Launcher 13 | . . . . 1 . . . . . 1 . 1 . . . . 2 6 2 . Special Weapon 9 | . . . . . . . . . . . . 1 . . 1 . 2 3 2 . Impact Weapon . | . . . . . . . . . . . . . . . . . . . . . Slashing Weapon . | . . . . . . . . . . . . . . . . . . . . . Piercing Weapon . | . . . . . . . . . . . . . . . . . . . . . Special Melee Weapon . | . . . . . . . . . . . . . . . . . . . . . Unidentified Prototypes 14 | . . 1 1 1 . . . . . . . . 2 . . . 2 4 . 3 Parts Lost 107 | . . . . . . . . 2 2 17 1 7 2 . . 9 3 29 35 . Power 12 | . . . . . . . . . . 4 . . . . . 1 . 4 3 . Propulsion 20 | . . . . . . . . . . 5 . 2 . . . . 1 2 10 . Utility 44 | . . . . . . . . 2 2 2 1 4 1 . . 5 1 12 14 . Weapon 31 | . . . . . . . . . . 6 . 1 1 . . 3 1 11 8 . Highest Loss Streak 22 | . . . . . . . . 2 1 15 1 3 2 . . 4 2 13 22 . To Critical Strikes 3 | . . . . . . . . . . . . . . . . . . 3 . . Average Slot Usage (%) 90 | . 97 100 84 98 100 100 82 91 98 89 99 95 96 94 87 91 88 86 67 14 Engine 5 | . 14 14 11 7 11 11 7 7 13 10 13 13 7 . 1 . . . . . Core 1 | . . . . 3 . . . . . . . . . . . 7 5 . . . Reactor 3 | . . . . . . . . . . . . . 3 11 8 1 7 12 8 . Treads 15 | . 28 28 21 21 22 22 23 22 20 14 20 9 9 16 10 15 11 10 5 . Leg 1 | . . . . . . . . . . 1 . 6 10 . . . . . . . Device 14 | . 11 14 14 20 22 22 15 14 12 17 19 13 11 11 15 23 9 6 10 2 Storage 8 | . 14 14 11 11 11 11 13 14 13 8 6 6 5 5 5 5 9 8 7 . Processor 7 | . . . 3 11 2 . . 3 16 14 13 8 6 5 5 6 11 10 8 2 Hackware 5 | . . . . . . . . . . . . 4 7 7 12 5 10 13 5 4 Protection 4 | . . . . 1 8 11 7 4 1 2 6 11 6 8 5 3 3 4 1 . Energy Gun 3 | . 14 14 15 4 . . . . . 3 6 2 1 . . 4 . 3 5 . Ballistic Gun 9 | . 14 14 6 13 22 22 15 20 20 3 1 4 3 11 10 14 9 2 . . Ballistic Cannon 3 | . . . . 4 . . . 1 . 4 6 5 9 5 5 . 2 6 . . Special Weapon 1 | . . . . . . . . . . . . 4 5 5 5 . 2 1 1 . Naked Turns . | . . . . . . . . . . . . . . . . . . . . . Heaviest Build 140 | 14 20 20 28 31 32 32 46 55 64 73 71 77 92 88 99 110 129 140 104 . Greatest Support 145 | 40 40 40 40 40 40 40 60 68 68 80 80 80 127 127 140 130 145 145 56 14 Greatest Overweight (x) 10 | . . . . 1 . . . 1 . 10 . 4 2 . . . 2 1 6 . Average Overweight (x) . | . . . . . . . . . . . . 1 . . . . . . 2 . Largest Inventory Capacity 15 | 8 10 10 10 10 10 10 15 15 15 15 15 15 15 15 15 15 15 15 15 5 Average Capacity 13 | 6 8 10 10 10 10 10 14 15 15 15 15 15 15 15 15 15 15 15 14 5 Most Carried 15 | 1 7 8 10 10 10 10 10 14 15 15 15 15 15 15 15 15 15 15 4 5 Average Carried 11 | . 4 7 8 9 9 9 9 11 13 12 14 14 14 14 14 14 14 11 3 3 Final Capacity 15 | 8 10 10 10 10 10 10 15 15 15 15 15 15 15 15 15 15 15 15 5 5 Final Carried 15 | 1 7 8 10 9 10 10 9 14 15 15 15 15 15 15 15 14 14 4 2 5 Class Distribution -------------------- 24% | Mutant 14% | Scavenger-Mutant 10% | Bothacker-Mutant 9% | Botlord-Gunner 9% | Bothacker-Gunner 7% | Scavenger-Gunner 6% | Bothacker-Tank 4% | Botlord-Mutant 4% | Gunner 3% | Tank Dominant Class ---------------- Mutant | -10/Materials Mutant | -10/Mines Mutant | -9/Materials Mutant | -9/Storage Mutant | -9/Garrison Mutant | -9/Recycling Mutant | -7/Factory Tank | -7/DSF Gunner | -6/Factory Scavenger-Mutant | -6/Garrison Scavenger-Mutant | -6/Factory Bothacker-Mutant | -6/Garrison Bothacker-Tank | -5/Factory Bothacker-Tank | -5/Garrison Bothacker-Gunner | -4/Factory Scavenger-Mutant | -4/Garrison Botlord-Gunner | -3/Research Bothacker-Gunner | -3/Quarantine Scavenger-Mutant | -2/Research Hacker-Sprinter | -2/Testing Resources | -11 -10 -10 -9 -9 -9 -9 -7 -7 -6 -6 -6 -6 -5 -5 -4 -4 -3 -3 -2 -2 ----------- Run | Scr Mat Min Mat Sto Gar Rec Fac DSF Fac Gar Fac Gar Fac Gar Fac Gar Res Qua Res Tes Matter Collected 11983 | 238 68 38 186 318 242 137 . 718 362 491 194 841 820 577 222 1016 2335 2675 505 . Remotely 976 | . . . . . . . . . . 322 194 460 . . . . . . . . Salvage Created 19522 | . 218 57 435 664 571 117 . 715 530 1150 156 725 1334 737 356 1602 4368 4522 1265 . Parts 871 | . 21 5 28 30 38 27 . 26 32 47 3 30 53 26 22 71 207 157 48 . Haulers Intercepted 8 | . . . 2 1 . . . . 1 . . . 1 . . . 2 . 1 . Recyclers Shooed 3 | . . . . 1 . . . . . . . . . . . . 1 1 . . Parts Field Recycled . | . . . . . . . . . . . . . . . . . . . . . Retrieved Matter . | . . . . . . . . . . . . . . . . . . . . . Parts Self-Destructed . | . . . . . . . . . . . . . . . . . . . . . Prevented . | . . . . . . . . . . . . . . . . . . . . . Kills | -11 -10 -10 -9 -9 -9 -9 -7 -7 -6 -6 -6 -6 -5 -5 -4 -4 -3 -3 -2 -2 ------- Run | Scr Mat Min Mat Sto Gar Rec Fac DSF Fac Gar Fac Gar Fac Gar Fac Gar Res Qua Res Tes Combat Hostiles Destroyed 354 | . 8 3 11 12 18 12 . 12 6 25 5 16 16 16 9 29 69 69 18 . Guns 199 | . 8 3 11 11 18 12 . 8 6 8 1 7 6 10 7 26 32 19 6 . Cannons 115 | . . . . 1 . . . 2 . 12 3 8 10 6 2 2 32 36 1 . AOE 35 | . . . . . . . . . . 5 1 . . . . 1 5 13 10 . Classes Destroyed 24 | . 4 . 3 1 2 . . 1 . 2 . 3 2 . . . 3 3 . . Worker 9 | . . . 1 . . . . . . . . . 2 . 1 . 2 2 1 . Builder 10 | . . . . . . . . . . . . . 2 . . . 3 3 2 . Tunneler 2 | . 1 . . . . . . . 1 . . . . . . . . . . . Hauler 8 | . . . 2 1 . . . . 1 . . . 1 . . . 2 . 1 . Recycler 8 | . . . . . . . . . . . . . 3 . . . 3 2 . . Mechanic 6 | . . . . . . . . . . . . . . . . . 2 3 1 . Operator 3 | . . . . . . . . . . . . . . . . . 1 2 . . Drone 15 | . . . . . 3 12 . . . . . . . . . . . . . . Watcher 5 | . 1 . . . . . . . . . . . 1 . . . 1 . 2 . Swarmer 69 | . 6 3 6 . 6 . . . 1 3 . . 4 4 5 9 18 4 . . Saboteur 1 | . . . . . . . . . . . . . . . . . . 1 . . Grunt 140 | . 2 . 3 8 7 . . 11 3 18 3 9 8 4 . 7 16 34 7 . Brawler 19 | . . . . . . . . . . 2 1 1 1 1 . 1 2 9 1 . Duelist 16 | . . . . 1 . . . . . 1 . 3 . 1 . . 4 6 . . Protector 8 | . . . . . . . . . . . . 1 1 . . 1 1 3 1 . Researcher 2 | . . . . . . . . . . . . . . . . . . 2 . . Sentry 23 | . . . 2 3 . . . . . . . 2 1 4 . 5 3 3 . . Demolisher 2 | . . . . . . . . . . . . 1 . . . 1 . . . . Specialist 3 | . . . . . . . . . . . . . . . . . 2 . 1 . Hunter 24 | . . . . . 2 . . . 2 . . . 1 1 . 2 11 2 3 . Programmer 31 | . . . . . . . . . . . . 1 . . 4 2 12 7 5 . Heavy 1 | . . . . . . . . 1 . . . . . . . . . . . . Q-Series 1 | . . . . . . . . . . . . . . . . . . 1 . . Behemoth 4 | . . . . . . . . . . 1 1 . . 1 . 1 . . . . Best Kill Streak 14 | . 5 3 3 4 5 4 . 3 3 13 2 5 6 12 5 7 14 13 8 . Combat Bots Only 13 | . 3 3 3 4 5 4 . 3 3 13 2 5 5 12 5 7 11 10 6 . Max Kills in Single Turn 4 | . 2 1 1 1 2 1 . 1 1 2 1 1 2 1 2 2 3 4 4 . Gunslinging 1 | . 1 . . . 1 . . . . . . . . . . 1 1 . . . Exploded 4 | . . . . . . . . . . 2 1 . . . . 1 2 3 4 . Melee . | . . . . . . . . . . . . . . . . . . . . . Uniques/NPCs Destroyed . | . . . . . . . . . . . . . . . . . . . . . Combat | -11 -10 -10 -9 -9 -9 -9 -7 -7 -6 -6 -6 -6 -5 -5 -4 -4 -3 -3 -2 -2 -------- Run | Scr Mat Min Mat Sto Gar Rec Fac DSF Fac Gar Fac Gar Fac Gar Fac Gar Res Qua Res Tes Damage Taken 23782 | . 118 61 226 270 233 . . 579 372 2278 277 1381 580 382 396 2801 3374 5839 4485 130 Core 2978 | . 24 . 60 25 30 . . 62 18 244 11 73 10 16 37 241 399 270 1365 93 Absorbed by Shields 4402 | . . . 4 88 176 . . 192 116 . . . 181 402 210 559 1519 955 . . Reduced by Siege Mode 264 | . . . . . . . . . . . . . . . . 228 25 11 . . Redirected to Shielding 291 | . . . . . 53 . . 104 28 . . . . . . . . . 106 . Regen/Repaired (Parts) 1773 | . . . 61 235 . . . . . . . . . . . . 574 903 . . Core Remaining (%) 77 | 100 . 90 . . . 71 . 91 . . . 59 . 97 . 75 . 37 . . Volleys Fired 949 | . 12 9 29 45 40 20 . 39 23 79 16 62 44 39 23 73 176 158 62 . Largest 4 | . 2 2 2 2 2 2 . 3 3 3 3 3 3 3 3 4 4 4 3 . Hottest 285 | . 70 70 95 73 46 46 . 89 89 144 152 173 194 116 116 162 165 285 237 . Shots Fired 2248 | . 24 18 53 82 80 40 . 117 69 133 44 155 108 112 49 236 429 399 100 . Gun 1538 | . 24 18 53 72 80 40 . 103 69 74 21 79 36 75 33 205 305 182 69 . Cannon 597 | . . . . 9 . . . 14 . 54 16 73 66 36 10 30 93 186 10 . Launcher 46 | . . . . 1 . . . . . 5 7 . . . . . 4 12 17 . Special 67 | . . . . . . . . . . . . 3 6 1 6 1 27 19 4 . Kinetic 1731 | . 12 9 17 48 80 40 . 117 69 90 21 109 101 111 43 186 391 287 . . Thermal 291 | . 12 9 29 33 . . . . . 38 16 43 1 . . . . 47 63 . Explosive 46 | . . . . 1 . . . . . 5 7 . . . . . 4 12 17 . Electromagnetic 113 | . . . 7 . . . . . . . . . . . . 49 7 34 16 . Robot Hit Streak 57 | . 7 4 21 57 32 6 . 24 15 38 24 29 20 22 8 45 40 54 18 . Robot Miss Streak 5 | . 2 2 2 2 1 2 . 1 2 1 1 1 3 4 5 2 2 3 1 . Penetration Max 2 | . . . . . . . . 1 1 1 . . 1 1 1 2 2 2 . . Secondary Targets 26 | . 4 . 1 . 4 . . 2 2 . . . . . 2 7 3 . 1 . Max Gunslinging Chain 1 | . 1 . 1 . 1 . . 1 1 . . . . . 1 1 1 . 1 . Shots Hit Robots 1730 | . 19 7 47 67 67 19 . 95 57 120 39 125 75 81 27 172 325 302 86 . Core Hits 908 | . 12 3 19 25 27 13 . 34 25 66 15 43 50 65 20 79 145 194 73 . Critical Kills 92 | . . 1 1 . . . . 3 7 5 . 1 9 2 4 5 15 39 . . Critical Parts Destroyed 124 | . . . . 1 2 . . 7 7 5 . . 9 1 2 10 18 62 . . Critical Strikes 281 | . 1 1 1 6 2 . . 10 14 15 2 4 19 4 6 28 50 118 . . Burn 15 | . 1 . . 5 . . . . . 1 1 . . . . . . 7 . . Meltdown 1 | . . . . . . . . . . . . 1 . . . . . . . . Destroy 229 | . . 1 1 1 2 . . 10 14 11 . . 18 4 6 21 34 106 . . Blast 27 | . . . . . . . . . . 3 1 3 1 . . . 15 4 . . Corrupt 9 | . . . . . . . . . . . . . . . . 7 1 1 . . Melee Attacks . | . . . . . . . . . . . . . . . . . . . . . Impact . | . . . . . . . . . . . . . . . . . . . . . Slashing . | . . . . . . . . . . . . . . . . . . . . . Piercing . | . . . . . . . . . . . . . . . . . . . . . Sneak Attacks . | . . . . . . . . . . . . . . . . . . . . . Combat Hostiles . | . . . . . . . . . . . . . . . . . . . . . Follow-up Attacks . | . . . . . . . . . . . . . . . . . . . . . Damage Inflicted 52040 | . 231 87 602 1024 964 312 . 1280 500 2531 1147 3178 1963 2390 850 5588 12376 11107 5910 . Guns 27325 | . 231 87 602 881 964 312 . 1051 500 883 398 1465 885 1571 659 4603 5978 4243 2012 . Cannons 15006 | . . . . 102 . . . 229 . 1196 454 1713 1076 819 191 706 5374 2780 366 . Explosions 9641 | . . . . 26 . . . . . 452 295 . . . . 279 1024 4044 3521 . Melee . | . . . . . . . . . . . . . . . . . . . . . Ramming 68 | . . . . 15 . . . . . . . . 2 . . . . 40 11 . Kinetic 34733 | . 121 37 205 608 964 312 . 1280 500 1460 565 2291 1938 2390 850 4640 11201 5371 . . Thermal 6018 | . 110 50 323 375 . . . . . 619 287 887 23 . . 279 . 1011 2054 . Explosive 9362 | . . . . 26 . . . . . 452 295 . . . . . 1024 4044 3521 . Electromagnetic 1859 | . . . 74 . . . . . . . . . . . . 669 151 641 324 . Impact . | . . . . . . . . . . . . . . . . . . . . . Slashing . | . . . . . . . . . . . . . . . . . . . . . Piercing . | . . . . . . . . . . . . . . . . . . . . . Highest Corruption 19 | . . . 1 1 1 1 . . . 1 1 2 . . 1 4 5 19 19 19 Average Corruption 2 | . . . 1 1 1 1 . . . 1 1 1 . . 1 3 1 6 8 19 Corruption Purged 9 | . . . . . . . . . . . . . . . . . 6 2 1 . Corruption Blocked 20 | . . . . . . . . . . . . . . . . . . . . 20 Effects 153 | . . . 5 7 3 8 . . . 4 1 13 . . 1 31 14 31 27 8 Message Errors 39 | . . . . 3 . 3 . . . . . 3 . . 1 7 2 7 11 2 Matter Fused 36 | . . . 1 1 2 2 . . . . . 6 . . . 5 5 7 5 2 Heat Flow Errors 16 | . . . . 1 . 1 . . . 1 . 2 . . . 4 1 3 2 1 Energy Discharges 19 | . . . 1 . . . . . . 2 . 1 . . . 6 2 5 2 . Parts Rejected 1 | . . . 1 . . . . . . . . . . . . . . . . . Data Loss (minor) 23 | . . . . 1 1 2 . . . 1 1 1 . . . 5 4 4 3 . Data Loss (major) 5 | . . . . 1 . . . . . . . . . . . 3 . 1 . . Misfires 1 | . . . . . . . . . . . . . . . . 1 . . . . Alerts 2 | . . . 1 . . . . . . . . . . . . . . . 1 . Misdirections 6 | . . . . . . . . . . . . . . . . . . . 3 3 Weapon Failures 5 | . . . 1 . . . . . . . . . . . . . . 4 . . Overload Shots . | . . . . . . . . . . . . . . . . . . . . . Overflow Damage 1122 | . . . . . . . . . . 20 . 51 . . . . 761 186 104 . Projectiles 772 | . . . . . . . . . . . . 51 . . . . 659 56 6 . Explosions 350 | . . . . . . . . . . 20 . . . . . . 102 130 98 . Melee . | . . . . . . . . . . . . . . . . . . . . . Knockbacks 111 | . . . . . . . . . . 14 . 10 14 6 7 10 22 28 . . Impact 1 | . . . . . . . . . . . . . . . . . . 1 . . Kinetic 104 | . . . . . . . . . . 14 . 10 14 5 7 8 21 25 . . Secondary 6 | . . . . . . . . . . . . . . 1 . 2 1 2 . . Self-Inflicted Damage 553 | . . . . . . . . . . . . . . . . 108 54 200 191 . Shots 12 | . . . . . . . . . . . . . . . . 2 1 5 4 . Rammed 11 | . . . . 3 . . . . . . . . . . . . . 5 3 . Targets Rammed 12 | . . . . 3 . . . . . . . . 1 . . . . 5 3 . Kicked . | . . . . . . . . . . . . . . . . . . . . . Crushed 1 | . . . . . . . . . . . . . 1 . . . . . . . Highest Temperature 456 | . 60 54 96 167 . 101 . 418 3 116 140 411 196 198 190 198 397 387 456 142 Average Temperature 101 | . 22 23 28 60 . 66 . 229 2 28 61 87 85 123 78 92 115 113 147 93 Received Heat Transfer 5165 | . 24 . 72 129 18 . . 253 45 1227 96 723 275 72 . 278 297 1035 603 18 Effects 17 | . . . . . . . . 5 . . . 3 . . . . 3 3 3 . Shutdowns 5 | . . . . . . . . . . . . 2 . . . . . 1 2 . Energy Bleed 2 | . . . . . . . . . . . . . . . . . 1 1 . . Interference 3 | . . . . . . . . 1 . . . 1 . . . . 1 . . . Short Circuit 1 | . . . . . . . . . . . . . . . . . . . 1 . Damage (minor) 2 | . . . . . . . . . . . . . . . . . 1 1 . . Damage (major) 4 | . . . . . . . . 4 . . . . . . . . . . . . Siege Activations 10 | . . . . . . . . . . . . . . . . 5 4 1 . . Total Turns 221 | . . . . . . . . . . . . . . . . 153 55 13 . . Longest Duration 52 | . . . . . . . . . . . . . . . . 52 27 13 . . Robots Corrupted 2 | . . . . . . . . . . . . . . . . . . 1 1 . Combat Hostiles 2 | . . . . . . . . . . . . . . . . . . 1 1 . Parts Fried 6 | . . . . . . . . . . . . . . . . 2 . 1 3 . Impact Corruptions . | . . . . . . . . . . . . . . . . . . . . . Robots Melted 1 | . . . . . . . . . . . . 1 . . . . . . . . Combat Hostiles 1 | . . . . . . . . . . . . 1 . . . . . . . . Parts Melted 15 | . 1 1 3 2 . . . 1 . 3 . . . . . . 1 1 2 . Heat Transferred 10459 | . 407 148 962 1480 . . . . . 1293 629 1484 50 . . 250 . 1778 1978 . Parts Sabotaged 3 | . . . . . . . . . . . . . . . . . . 3 . . Parts Stolen . | . . . . . . . . . . . . . . . . . . . . . Parts Stripped . | . . . . . . . . . . . . . . . . . . . . . Power Chain Reactions 2 | . . . . . . . . . . . . . . . . 2 . . . . Missiles Intercepted . | . . . . . . . . . . . . . . . . . . . . . Alert | -11 -10 -10 -9 -9 -9 -9 -7 -7 -6 -6 -6 -6 -5 -5 -4 -4 -3 -3 -2 -2 ------- Run | Scr Mat Min Mat Sto Gar Rec Fac DSF Fac Gar Fac Gar Fac Gar Fac Gar Res Qua Res Tes Peak Influence 1841 | . 253 101 200 390 702 367 955 905 541 672 461 769 692 856 702 1451 1841 1782 1421 703 Initial 1100 | . . 31 33 65 160 270 955 589 411 143 305 284 349 426 389 338 710 901 1100 584 Average 687 | . 97 90 90 231 443 276 955 731 308 391 374 618 454 701 551 1047 1089 1204 1101 602 Maximum Alert Level 5 | . 1 . 1 1 3 1 3 3 2 2 2 3 2 3 3 4 5 5 4 3 Low Security (%) 13 | 100 80 100 88 28 16 22 . . 27 15 . . . . . . . . . . Level 1 18 | . 19 . 11 71 26 77 . . 37 27 41 11 50 . 4 1 . . . . Level 2 22 | . . . . . 51 . . 36 34 57 58 56 49 33 85 14 . 6 . 96 Level 3 24 | . . . . . 6 . 100 63 . . . 32 . 66 10 28 62 30 31 4 Level 4 19 | . . . . . . . . . . . . . . . . 55 31 50 68 . Level 5 1 | . . . . . . . . . . . . . . . . . 5 4 . . High Security . | . . . . . . . . . . . . . . . . . . 7 . . Max Security . | . . . . . . . . . . . . . . . . . . . . . Sterilizations 1 | . . . . . . . . 1 . . . . . . . . . . . . Squads Dispatched 69 | . 1 . 1 4 . . . 1 4 . 3 . 4 . 3 . 17 24 3 4 Investigation 11 | . 1 . 1 1 . . . . 2 . 1 . 1 . 1 . 1 1 . 1 Extermination 14 | . . . . . . . . . 1 . 1 . 1 . 2 . 4 4 1 . Reinforcement 16 | . . . . 3 . . . 1 . . 1 . 1 . . . 4 3 1 2 Assault 23 | . . . . . . . . . . . . . 1 . . . 7 13 1 1 Garrison 5 | . . . . . . . . . 1 . . . . . . . 1 3 . . Intercept . | . . . . . . . . . . . . . . . . . . . . . Searches Triggered . | . . . . . . . . . . . . . . . . . . . . . Construction Impeded 2 | . . . . . . . . . . . . . . . . . . 1 1 . Haulers Reinforced 2 | . . . . . . . . . . . . . . . . . 1 . . 1 Active Scanning Responses . | . . . . . . . . . . . . . . . . . . . . . Cargo Convoy Interrupts 1 | . . . . . . . . . . . . . . . . . . . 1 . Alert ID Control Effect 18 | . . . . . . . . . . . . 2 . . . 3 9 2 2 . Stealth | -11 -10 -10 -9 -9 -9 -9 -7 -7 -6 -6 -6 -6 -5 -5 -4 -4 -3 -3 -2 -2 --------- Run | Scr Mat Min Mat Sto Gar Rec Fac DSF Fac Gar Fac Gar Fac Gar Fac Gar Res Qua Res Tes Distress Signals 12 | . 1 . . 4 . . . . 1 . . . 1 . . . 1 . 3 1 Communications Jammed 335 | . . . . . . . . . . . . . 17 . . 13 156 123 26 . Distress Signals 335 | . . . . . . . . . . . . . 17 . . 13 156 123 26 . Times Spotted 576 | . 13 3 13 26 17 26 . 16 15 28 6 21 31 19 13 35 100 127 47 20 Peak Tracking Total 19 | . 4 3 3 4 4 3 . 5 3 7 3 5 6 5 5 8 7 19 14 17 Tactical Retreats 32 | . 2 . 1 . . . . 4 4 2 . 1 4 1 . . 6 5 . 2 Traps | -11 -10 -10 -9 -9 -9 -9 -7 -7 -6 -6 -6 -6 -5 -5 -4 -4 -3 -3 -2 -2 ------- Run | Scr Mat Min Mat Sto Gar Rec Fac DSF Fac Gar Fac Gar Fac Gar Fac Gar Res Qua Res Tes Traps Triggered 17 | . 1 . 2 3 . . . . 1 . . 5 . 1 . 1 1 1 . 1 Indirectly . | . . . . . . . . . . . . . . . . . . . . . Trap Hack Attempts . | . . . . . . . . . . . . . . . . . . . . . Triggered . | . . . . . . . . . . . . . . . . . . . . . Disarmed . | . . . . . . . . . . . . . . . . . . . . . Reprogrammed . | . . . . . . . . . . . . . . . . . . . . . Reused . | . . . . . . . . . . . . . . . . . . . . . Traps Extracted . | . . . . . . . . . . . . . . . . . . . . . Installed . | . . . . . . . . . . . . . . . . . . . . . Triggered 2 | . . . . . . . . . . . . . . . . . 2 . . . Machines | -11 -10 -10 -9 -9 -9 -9 -7 -7 -6 -6 -6 -6 -5 -5 -4 -4 -3 -3 -2 -2 ---------- Run | Scr Mat Min Mat Sto Gar Rec Fac DSF Fac Gar Fac Gar Fac Gar Fac Gar Res Qua Res Tes Machines Disabled 44 | . . . . 2 2 . . . . 1 . 4 3 1 3 11 2 12 3 . Max in Single Turn 2 | . . . . 1 1 . . . . 1 . 1 1 1 2 2 1 2 1 . Garrison Access 2 | . . . . . . . . . . . . . . . . . 1 1 . . Garrison Relay 11 | . . . . . 2 . . . . 1 . 3 . 1 . 4 . . . . Phase Generator 1 | . . . . . . . . . . . . . . . . 1 . . . . Machines Sabotaged . | . . . . . . . . . . . . . . . . . . . . . Garrisons Compromised 1 | . . . . . . . . . . . . . . . . . 1 . . . Overloaded Fab Kills . | . . . . . . . . . . . . . . . . . . . . . Hacking | -11 -10 -10 -9 -9 -9 -9 -7 -7 -6 -6 -6 -6 -5 -5 -4 -4 -3 -3 -2 -2 --------- Run | Scr Mat Min Mat Sto Gar Rec Fac DSF Fac Gar Fac Gar Fac Gar Fac Gar Res Qua Res Tes Machines Accessed 78 | . 8 . 3 11 . 11 2 . 6 . 2 . 6 . 3 . 10 9 5 2 Terminals 44 | . 6 . 2 9 . 5 1 . 4 . . . 3 . 1 . 3 6 3 1 Fabricators 3 | . . . . . . . . . . . 1 . . . 1 . . . . 1 Repair Stations 10 | . 1 . 1 1 . . . . . . . . 2 . . . 3 1 1 . Recycling Units 10 | . 1 . . . . 6 . . 1 . . . . . . . 1 . 1 . Scanalyzers 4 | . . . . . . . 1 . . . . . . . . . 2 1 . . Garrison Access 7 | . . . . 1 . . . . 1 . 1 . 1 . 1 . 1 1 . . Total Hacks 188 | . 19 . 10 27 . 26 2 . 15 . 5 . 19 . 9 . 18 23 10 5 Successful 102 | . 11 . 8 20 . 13 1 . 8 . 2 . 10 . 6 . 6 8 5 4 Failed 86 | . 8 . 2 7 . 13 1 . 7 . 3 . 9 . 3 . 12 15 5 1 Catastrophic 17 | . 1 . . . . 1 . . 4 . . . . . 1 . 5 4 1 . Database Lockouts . | . . . . . . . . . . . . . . . . . . . . . Manual 41 | . 3 . 3 8 . 9 . . 4 . 2 . 2 . 4 . 2 4 . . Terminals 118 | . 15 . 6 22 . 18 1 . 10 . . . 14 . 2 . 5 16 8 1 Fabricators 9 | . . . . . . . . . . . 2 . . . 3 . . . . 4 Repair Stations 20 | . 2 . 4 4 . . . . . . . . 2 . . . 4 3 1 . Recycling Units 13 | . 2 . . . . 8 . . 1 . . . . . . . 1 . 1 . Scanalyzers 10 | . . . . . . . 1 . . . . . . . . . 6 3 . . Garrison Access 18 | . . . . 1 . . . . 4 . 3 . 3 . 4 . 2 1 . . Terminal Hacks 58 | . 8 . 4 15 . 6 1 . 5 . . . 8 . . . 1 5 4 1 Record 8 | . 1 . . . . 1 . . . . . . 4 . . . . 2 . . Part Schematic 3 | . . . . 1 . 1 . . . . . . . . . . . 1 . . Robot Schematic 1 | . . . . 1 . . . . . . . . . . . . . . . . Robot Analysis 2 | . . . . 2 . . . . . . . . . . . . . . . . Prototype ID Bank 5 | . 2 . . 1 . 1 . . 1 . . . . . . . . . . . Open Door 4 | . . . . 4 . . . . . . . . . . . . . . . . Open DSF 2 | . . . . . . . 1 . . . . . . . . . . . 1 . Branch Access Points 3 | . . . 1 . . 1 . . . . . . . . . . . . 1 . Emergency Access Points 1 | . . . . 1 . . . . . . . . . . . . . . . . Machine Index 1 | . 1 . . . . . . . . . . . . . . . . . . . Terminal Index 3 | . . . . 1 . . . . . . . . 1 . . . . 1 . . Garrison Index 2 | . . . . 1 . . . . 1 . . . . . . . . . . . Alert Level 2 | . . . 1 1 . . . . . . . . . . . . . . . . Unreport Threat 3 | . . . . . . . . . 2 . . . . . . . . 1 . . Locate Traps 3 | . 1 . . 1 . . . . . . . . 1 . . . . . . . Dispatch Records 1 | . . . . . . 1 . . . . . . . . . . . . . . Recall Reinforcements 1 | . . . . . . . . . . . . . 1 . . . . . . . Hauler Manifests 4 | . 1 . 1 . . . . . 1 . . . . . . . . . 1 . Registered Components 2 | . 1 . . . . . . . . . . . 1 . . . . . . . Registered Prototypes 1 | . . . . . . . . . . . . . . . . . 1 . . . Zone Layout 5 | . 1 . 1 1 . 1 . . . . . . . . . . . . 1 . Protovariant Controls 1 | . . . . . . . . . . . . . . . . . . . . 1 Fabricator Hacks 5 | . . . . . . . . . . . . . . . 2 . . . . 3 Network Status 2 | . . . . . . . . . . . . . . . 1 . . . . 1 Load Schematic 1 | . . . . . . . . . . . . . . . . . . . . 1 Build 2 | . . . . . . . . . . . . . . . 1 . . . . 1 Repair Station Hacks 12 | . 1 . 4 4 . . . . . . . . . . . . 2 1 . . Scan Component 7 | . 1 . 2 2 . . . . . . . . . . . . 1 1 . . Repair 5 | . . . 2 2 . . . . . . . . . . . . 1 . . . Recycling Unit Hacks 7 | . 2 . . . . 3 . . 1 . . . . . . . . . 1 . Retrieve Matter 4 | . 1 . . . . 2 . . 1 . . . . . . . . . . . Retrieve Components 3 | . 1 . . . . 1 . . . . . . . . . . . . 1 . Scanalyzer 3 | . . . . . . . . . . . . . . . . . 2 1 . . Insert Component 3 | . . . . . . . . . . . . . . . . . 2 1 . . Garrison Access Hacks 8 | . . . . 1 . . . . 1 . 1 . 1 . 2 . 1 1 . . Unlock Access 5 | . . . . 1 . . . . 1 . 1 . 1 . 1 . . . . . Seal Access 2 | . . . . . . . . . . . . . . . . . 1 1 . . Coupler Status 1 | . . . . . . . . . . . . . . . 1 . . . . . Unauthorized Hacks 9 | . . . . . . 4 . . 1 . 1 . 1 . 2 . . . . . Terminals . | . . . . . . . . . . . . . . . . . . . . . Fabricators . | . . . . . . . . . . . . . . . . . . . . . Repair Stations . | . . . . . . . . . . . . . . . . . . . . . Recycling Units 4 | . . . . . . 4 . . . . . . . . . . . . . . Tunnel 4 | . . . . . . 4 . . . . . . . . . . . . . . Scanalyzers . | . . . . . . . . . . . . . . . . . . . . . Garrison Access 5 | . . . . . . . . . 1 . 1 . 1 . 2 . . . . . Reprogram 3 | . . . . . . . . . 1 . 1 . . . 1 . . . . . Eject 2 | . . . . . . . . . . . . . 1 . 1 . . . . . Data Cores Recovered . | . . . . . . . . . . . . . . . . . . . . . Used . | . . . . . . . . . . . . . . . . . . . . . Hacking Detections 63 | . 7 . 3 7 . 5 2 . 6 . 2 . 6 . 2 . 10 7 4 2 Full Trace Events 6 | . . . . . . 1 . . 1 . 1 . . . . . 1 1 . 1 Feedback Events 1 | . . . . . . . . . . . . . . . . . 1 . . . Corruption 1 | . . . . . . . . . . . . . . . . . 1 . . . Feedback Blocked . | . . . . . . . . . . . . . . . . . . . . . Robot Schematics Acquired 1 | . . . . 1 . . . . . . . . . . . . . . . . Robots Built . | . . . . . . . . . . . . . . . . . . . . . Authchips . | . . . . . . . . . . . . . . . . . . . . . Time 81 | . . . . . . . . . . . . . . . . . . . . 81 Total Robot Build Rating . | . . . . . . . . . . . . . . . . . . . . . Part Schematics Acquired 16 | . . . . 1 . 1 . . . . . . . . . . . 14 . . Parts Built 2 | . . . . . . . . . . . . . . . 2 . . . . . Authchips . | . . . . . . . . . . . . . . . . . . . . . Time 58 | . . . . . . . . . . . . . . . 58 . . . . . Total Part Build Rating 14 | . . . . . . . . . . . . . . . 14 . . . . . Parts Repaired 5 | . . . 2 2 . . . . . . . . . . . . 1 . . . Time 232 | . . . 134 76 . . . . . . . . . . . . 22 . . . Parts Recycled . | . . . . . . . . . . . . . . . . . . . . . Recycled Matter . | . . . . . . . . . . . . . . . . . . . . . Retrieved Matter . | . . . . . . . . . . . . . . . . . . . . . Retrieved Components 12 | . 10 . . . . 1 . . . . . . . . . . . . 1 . Parts Scanalyzed 2 | . . . . . . . . . . . . . . . . . 1 1 . . Part Schematics Acquired . | . . . . . . . . . . . . . . . . . . . . . Parts Damaged . | . . . . . . . . . . . . . . . . . . . . . Bothacking | -11 -10 -10 -9 -9 -9 -9 -7 -7 -6 -6 -6 -6 -5 -5 -4 -4 -3 -3 -2 -2 ------------ Run | Scr Mat Min Mat Sto Gar Rec Fac DSF Fac Gar Fac Gar Fac Gar Fac Gar Res Qua Res Tes Used RIF Installer 5 | . . . . . 1 . . . . 1 . 1 . 1 . 1 . . . . Coupler Efficiency 1 | . . . . . . . . . . . . . . . . 1 . . . . Signal Jammer 1 | . . . . . . . . . . . . 1 . . . . . . . . Alert ID Control 1 | . . . . . . . . . . 1 . . . . . . . . . . Program Shield 1 | . . . . . . . . . . . . . . 1 . . . . . . Robots Hacked 36 | . . . . . . . . . . . . 3 4 1 4 1 13 9 1 . Non-combat 17 | . . . . . . . . . . . . . 2 . 3 . 9 3 . . Combat 19 | . . . . . . . . . . . . 3 2 1 1 1 4 6 1 . Robot Hacks Applied 49 | . . . . . . . . . . . . 3 4 1 5 1 22 12 1 . parse_system 5 | . . . . . . . . . . . . . . . . . 5 . . . ignore_repairs 2 | . . . . . . . . . . . . . . . . . 2 . . . map_walls 3 | . . . . . . . . . . . . . 1 . . . 2 . . . find_fabricator 1 | . . . . . . . . . . . . . . . . . 1 . . . drop_inventory 4 | . . . . . . . . . . . . . . . 1 . 2 1 . . ignore_parts 1 | . . . . . . . . . . . . . . . . . 1 . . . find_station 1 | . . . . . . . . . . . . . . . . . 1 . . . purge_threat 2 | . . . . . . . . . . . . . . . . . . 2 . . map_route 3 | . . . . . . . . . . . . . 1 . 1 . 1 . . . redirect_shields 1 | . . . . . . . . . . . . . . . . . 1 . . . find_scanalyzer 1 | . . . . . . . . . . . . . . . . . . 1 . . report_schematics 1 | . . . . . . . . . . . . . . . . . . 1 . . find_garrison 2 | . . . . . . . . . . . . . 1 . 1 . . . . . overwrite_iff 11 | . . . . . . . . . . . . 3 1 1 . . 1 5 . . formatsys_low 4 | . . . . . . . . . . . . . . . 1 . 1 2 . . formatsys_high 7 | . . . . . . . . . . . . . . . 1 1 4 . 1 . Relay Couplers Released 56 | . . . . . 10 . . . . 5 . 13 3 5 4 16 . . . . Ejected 7 | . . . . . . . . . . . . . 3 . 4 . . . . . Machine Destruction 49 | . . . . . 10 . . . . 5 . 13 . 5 . 16 . . . . Attached 16 | . . . . . . . . . . . . 1 2 1 1 3 4 2 2 . Fabnet Peak Effective % . | . . . . . . . . . . . . . . . . . . . . . Robots Rewired . | . . . . . . . . . . . . . . . . . . . . . Allies Hacked 4 | . . . . . . . . . . . . . . . . . 3 1 . . Hacks Repelled . | . . . . . . . . . . . . . . . . . . . . . Allies | -11 -10 -10 -9 -9 -9 -9 -7 -7 -6 -6 -6 -6 -5 -5 -4 -4 -3 -3 -2 -2 -------- Run | Scr Mat Min Mat Sto Gar Rec Fac DSF Fac Gar Fac Gar Fac Gar Fac Gar Res Qua Res Tes Total Allies 33 | . . . . 10 . . . . 1 . . 3 1 1 2 1 6 7 1 . Largest Group 10 | . . . . 10 3 . . . 1 1 . 1 1 1 2 2 3 4 1 . Highest-Rated Group 213 | . . . . 88 32 . . . 32 32 . 29 29 29 92 92 197 213 64 . Highest-Rated Ally 116 | . . . . 16 16 . . . 32 32 . 29 29 29 47 47 116 64 64 . Total Orders 14 | . . . . . . . . . . . . . . . . 6 7 1 . . STAY 3 | . . . . . . . . . . . . . . . . 3 . . . . FOLLOW 3 | . . . . . . . . . . . . . . . . 3 . . . . AID 8 | . . . . . . . . . . . . . . . . . 7 1 . . Ally Attacks 162 | . . . . 48 22 . . . 6 2 . 10 5 2 1 8 38 14 6 . Total Damage 4668 | . . . . 478 191 . . . 233 42 . 170 93 36 28 304 2251 536 306 . Kills 28 | . . . . 6 2 . . . 2 . . 2 . . . 3 9 2 2 . Allies Corrupted 3 | . . . . . . . . . . . . . . . . . 2 . 1 . Allies Melted . | . . . . . . . . . . . . . . . . . . . . . Intel | -11 -10 -10 -9 -9 -9 -9 -7 -7 -6 -6 -6 -6 -5 -5 -4 -4 -3 -3 -2 -2 ------- Run | Scr Mat Min Mat Sto Gar Rec Fac DSF Fac Gar Fac Gar Fac Gar Fac Gar Res Qua Res Tes Robot Analysis Total 2 | . . . . 2 . . . . . . . . . . . . . . . . Derelict Logs Recovered . | . . . . . . . . . . . . . . . . . . . . . Drone Launches . | . . . . . . . . . . . . . . . . . . . . . Drone Recoveries . | . . . . . . . . . . . . . . . . . . . . . Exploration | -11 -10 -10 -9 -9 -9 -9 -7 -7 -6 -6 -6 -6 -5 -5 -4 -4 -3 -3 -2 -2 ------------- Run | Scr Mat Min Mat Sto Gar Rec Fac DSF Fac Gar Fac Gar Fac Gar Fac Gar Res Qua Res Tes Turns Passed 16898 | 60 644 243 615 1116 646 887 139 483 640 700 352 1395 916 614 548 1789 2294 1760 907 150 Spaces Moved 7708 | 37 371 134 217 485 301 467 80 182 326 262 179 446 381 284 232 879 1051 682 452 260 Core 183 | 7 . . . . . . . . . 5 . . . . . . . . 94 77 Treads 6660 | 30 371 134 217 485 301 467 80 182 326 233 179 238 178 284 232 879 1051 682 111 . Legs 439 | . . . . . . . . . . 24 . 208 203 . . . . . 4 . Wheels 243 | . . . . . . . . . . . . . . . . . . . 243 . Hover . | . . . . . . . . . . . . . . . . . . . . . Flight 183 | . . . . . . . . . . . . . . . . . . . . 183 Fastest Speed 27 | 50 160 160 160 170 170 170 170 166 166 120 160 160 163 163 156 156 152 152 50 27 Average Speed 166 | 139 160 160 164 170 170 170 170 168 166 167 160 256 184 163 168 160 159 171 152 35 Slowest Speed 550 | 160 160 160 170 250 170 170 170 250 166 550 160 400 260 165 170 161 312 250 210 50 Overloaded Moves . | . . . . . . . . . . . . . . . . . . . . . Propulsion Burnouts . | . . . . . . . . . . . . . . . . . . . . . Robots Hopped 4 | . . . . . . . . . . . . . . . . . . . . 4 Cave-ins Triggered . | . . . . . . . . . . . . . . . . . . . . . Teleports 3 | . . . . . . . . . . . . . . . . . . 3 . . Exploration Rate (%) 42 | 3 68 44 23 71 49 91 2 85 9 44 7 71 16 57 9 94 30 55 16 39 Regions Visited 20 Branch Regions 5 Pre-discovered Areas 4 | . . . . . . 4 . . . . . . . . . . . . . . Known Exits Taken 8 | . . . 1 1 . . 1 . 1 . 1 . 1 . 1 . . . 1 . Unknown Exits Taken 6 | 1 1 1 . . . 1 . . . . . . . . . . 1 1 . . Scrap Searched . | . . . . . . . . . . . . . . . . . . . . . Spaces Dug 8 | . . . . . . . . . . . . . 1 . 3 . 4 . . . Terrain Destroyed 649 | . . . . 6 . . . 1 1 33 45 1 34 4 23 131 112 167 91 . Melee . | . . . . . . . . . . . . . . . . . . . . . Projectile 118 | . . . . . . . . . . . 1 1 34 4 23 15 24 15 1 . AOE 525 | . . . . 6 . . . . . 32 44 . . . . 116 86 151 90 . Terrain Rammed . | . . . . . . . . . . . . . . . . . . . . . Walls Destroyed . | . . . . . . . . . . . . . . . . . . . . . Machines Disabled . | . . . . . . . . . . . . . . . . . . . . . Actions | -11 -10 -10 -9 -9 -9 -9 -7 -7 -6 -6 -6 -6 -5 -5 -4 -4 -3 -3 -2 -2 --------- Run | Scr Mat Min Mat Sto Gar Rec Fac DSF Fac Gar Fac Gar Fac Gar Fac Gar Res Qua Res Tes Total 10043 | 43 397 145 421 694 357 521 83 269 372 399 211 582 515 352 353 1106 1373 971 566 313 Wait 740 | . 4 . 146 129 7 33 . 28 11 27 2 8 41 20 66 87 56 40 11 24 Move 7677 | 36 370 133 216 484 299 466 79 181 325 260 178 443 380 282 231 878 1050 681 452 253 Hop 3 | . . . . . . . . . . . . . . . . . . . . 3 Pick Up 107 | 1 7 1 8 3 3 1 . 5 3 8 1 9 8 1 6 14 13 6 4 5 Fast Attach 212 | 6 3 1 9 8 . . 1 8 5 13 6 13 17 4 11 20 26 29 26 6 Attach 92 | . . . 3 6 2 . 2 2 2 8 1 8 2 . 1 7 14 25 7 2 Detach 31 | . . . . 5 . . 1 2 . . 1 3 . . . 2 5 10 1 1 Swap . | . . . . . . . . . . . . . . . . . . . . . Drop 175 | . 1 1 10 9 2 1 . 4 3 4 6 14 22 5 15 25 33 15 1 4 Fire 949 | . 12 9 29 45 40 20 . 39 23 79 16 62 44 39 23 73 176 158 62 . Melee . | . . . . . . . . . . . . . . . . . . . . . Ram 2 | . . . . . . . . . . . . . . . . . . . 2 . Kick . | . . . . . . . . . . . . . . . . . . . . . Crush 9 | . . . . 3 . . . . . . . . 1 . . . . 5 . . Escape Stasis 39 | . . . . . . . . . . . . 22 . 1 . . . 1 . 15 Rewire 7 | . . . . 2 4 . . . . . . . . . . . . 1 . . Trap . | . . . . . . . . . . . . . . . . . . . . . Miscellaneous . | . . . . . . . . . . . . . . . . . . . . . Route ------- -11/Scrapyard -10/Materials (discovered 3 exits: *Mat / [*Min x2]) -10/Mines -9/Materials (discovered 4 exits: Min x2 / *Sto x2) -9/Storage -9/Garrison -9/Recycling -7/Factory -7/DSF -6/Factory -6/Garrison -6/Factory -6/Garrison (discovered 3 exits: *Fac x3) -5/Factory (discovered 2 exits: [*Upp] / Gar) -5/Garrison (discovered 2 exits: *Fac x2) -4/Factory (discovered 2 exits: Res / Gar) -4/Garrison (discovered 3 exits: *Res x3) -3/Research (discovered 2 exits: Res / *Qua) -3/Quarantine -2/Research (discovered 2 exits: *Tes x2) -2/Testing History --------- Turn | Location | Event 32 | -11/Scrapyard | Discovered new exit (range 16) 61 | -11/Scrapyard | Entered Materials 313 | -10/Materials | Build established: Mutant 323 | -10/Materials | Discovered new exit (range 9) 407 | -10/Materials | Discovered new exit (range 11) 562 | -10/Materials | Discovered new exit (range 14) 705 | -10/Materials | Entered Mines 724 | -10/Mines | Met a Derelict bent on vengeance 850 | -10/Mines | Found a damaged Exp. Sensor Array with a note attached 855 | -10/Mines | Found Prototype Device 855 | -10/Mines | Identified Exp. Sensor Array 939 | -10/Mines | Discovered new exit (range 6) 948 | -10/Mines | Entered Materials 948 | -9/Materials | Evolved 2 slots: Utility x2 1070 | -9/Materials | Repaired Exp. Sensor Array 1097 | -9/Materials | Repaired Lgt. Treads 1220 | -9/Materials | Discovered new exit (range 16) 1226 | -9/Materials | Identified exit to Mines 1226 | -9/Materials | Identified exit to Storage 1563 | -9/Materials | Entered Storage 2087 | -9/Storage | Repaired Arm. Treads 2127 | -9/Storage | Repaired Arm. Treads 2228 | -9/Storage | Assisted by bots powering up and referring to "LRC-V3" 2532 | -9/Storage | Build established: Commander-Mutant 2677 | -9/Storage | Identified exit to Garrison 2679 | -9/Storage | Entered Garrison 2679 | -9/Garrison | Accompanied by 3 allies 2780 | -9/Garrison | Triggered checkpoint 2802 | -9/Garrison | Garrison Relay disabled 2852 | -9/Garrison | Build established: Mutant 2948 | -9/Garrison | Triggered checkpoint 3108 | -9/Garrison | Discovered new exit (range 10) 3133 | -9/Garrison | Installed Relay Interface Framework 3208 | -9/Garrison | Triggered checkpoint 3234 | -9/Garrison | Garrison Relay disabled 3325 | -9/Garrison | Entered Recycling 3412 | -9/Recycling | Spotter reported a threat 3432 | -9/Recycling | Spotter reported a threat 3452 | -9/Recycling | Spotter reported a threat 3479 | -9/Recycling | Spotter reported a threat 3479 | -9/Recycling | Spotter reported a threat 3483 | -9/Recycling | Spotter reported a threat 3515 | -9/Recycling | Spotter reported a threat 3532 | -9/Recycling | Spotter reported a threat 3552 | -9/Recycling | Spotter reported a threat 3600 | -9/Recycling | Spotter reported a threat 3605 | -9/Recycling | Spotter reported a threat 3653 | -9/Recycling | Spotter reported a threat 3658 | -9/Recycling | Spotter reported a threat 3697 | -9/Recycling | Spotter reported a threat 3706 | -9/Recycling | Spotter reported a threat 3715 | -9/Recycling | Spotter reported a threat 3760 | -9/Recycling | Spotter reported a threat 3813 | -9/Recycling | Spotter reported a threat 3826 | -9/Recycling | Discovered new exit (range 15) 3834 | -9/Recycling | Spotter reported a threat 3891 | -9/Recycling | Spotter reported a threat 4086 | -9/Recycling | Spotter reported a threat 4141 | -9/Recycling | Spotter reported a threat 4144 | -9/Recycling | Spotter reported a threat 4173 | -9/Recycling | Spotter reported a threat 4188 | -9/Recycling | Spotter reported a threat 4212 | -9/Recycling | Entered Factory 4212 | -7/Factory | Evolved 4 slots: Propulsion x1, Utility x2, Weapon x1 4337 | -7/Factory | Identified exit to DSF 4351 | -7/Factory | Entered DSF 4393 | -7/DSF | Additional patrols routed to DSF 4413 | -7/DSF | Discovered new exit (range 16) 4687 | -7/DSF | Sterilization system engaged 4689 | -7/DSF | Build established: Tank 4707 | -7/DSF | Ambient heat levels rising (+10) 4722 | -7/DSF | Ambient heat levels rising (+10) 4737 | -7/DSF | Ambient heat levels rising (+10) 4752 | -7/DSF | Ambient heat levels rising (+10) 4767 | -7/DSF | Ambient heat levels rising (+10) 4782 | -7/DSF | Ambient heat levels rising (+10) 4797 | -7/DSF | Ambient heat levels rising (+10) 4812 | -7/DSF | Ambient heat levels rising (+10) 4827 | -7/DSF | Ambient heat levels rising (+10) 4834 | -7/DSF | Entered Factory 4834 | -6/Factory | Evolved 2 slots: Power x1, Utility x1 5268 | -6/Factory | Build established: Gunner 5328 | -6/Factory | Identified exit to Garrison 5363 | -6/Factory | Garrison activated, responded to threat 5474 | -6/Factory | Entered Garrison 5474 | -6/Garrison | Accompanied by 1 ally 5534 | -6/Garrison | Triggered checkpoint 5541 | -6/Garrison | Spotted B-75 Beast 5603 | -6/Garrison | Triggered checkpoint 5616 | -6/Garrison | Destroyed B-75 Beast 5728 | -6/Garrison | Lost 15 parts (3p5n2u5w) 5731 | -6/Garrison | Destroyed 13 combat bots 5932 | -6/Garrison | Discovered new exit (range 12) 5960 | -6/Garrison | Expanded RIF knowledge: Alert ID Control 6010 | -6/Garrison | Triggered checkpoint 6047 | -6/Garrison | Garrison Relay disabled 6068 | -6/Garrison | Triggered checkpoint 6174 | -6/Garrison | Entered Factory 6299 | -6/Factory | Spotted B-75 Beast 6321 | -6/Factory | Destroyed B-75 Beast 6524 | -6/Factory | Identified exit to Garrison 6526 | -6/Factory | Entered Garrison 6596 | -6/Garrison | Triggered checkpoint 6622 | -6/Garrison | Garrison Relay disabled 6774 | -6/Garrison | Lost 3 parts (2u1w) 6784 | -6/Garrison | Triggered checkpoint 6913 | -6/Garrison | Lost 3 parts (1n2u) 6939 | -6/Garrison | Discovered new exit (range 15) 7050 | -6/Garrison | Triggered checkpoint 7130 | -6/Garrison | Garrison Relay disabled 7186 | -6/Garrison | Build established: Bothacker-Mutant 7448 | -6/Garrison | Triggered checkpoint 7502 | -6/Garrison | Garrison Relay disabled 7577 | -6/Garrison | Discovered new exit (range 10) 7762 | -6/Garrison | Triggered checkpoint 7876 | -6/Garrison | Discovered new exit (range 10) 7909 | -6/Garrison | Expanded RIF knowledge: Signal Jamming 7921 | -6/Garrison | Entered Factory 7921 | -5/Factory | Evolved 2 slots: Propulsion x1, Weapon x1 8184 | -5/Factory | Discovered new exit (range 6) 8521 | -5/Factory | First assault squad dispatched 8579 | -5/Factory | Build established: Bothacker-Tank 8817 | -5/Factory | Identified exit to Garrison 8837 | -5/Factory | Entered Garrison 8980 | -5/Garrison | Spotted B-75 Beast 8997 | -5/Garrison | Destroyed B-75 Beast 9064 | -5/Garrison | Destroyed 12 combat bots 9113 | -5/Garrison | Discovered new exit (range 9) 9154 | -5/Garrison | Triggered checkpoint 9183 | -5/Garrison | Garrison Relay disabled 9350 | -5/Garrison | Discovered new exit (range 15) 9381 | -5/Garrison | Expanded RIF knowledge: Program Shield 9420 | -5/Garrison | Triggered checkpoint 9451 | -5/Garrison | Entered Factory 9451 | -4/Factory | Evolved 2 slots: Utility x2 9472 | -4/Factory | Build established: Bothacker-Mutant 9481 | -4/Factory | Discovered new exit (range 92) 9910 | -4/Factory | Fabricated Adv. Coolant Injector (x2) 9997 | -4/Factory | Identified exit to Garrison 9999 | -4/Factory | Entered Garrison 9999 | -4/Garrison | Accompanied by 2 allies 10033 | -4/Garrison | Phase Generator disabled 10070 | -4/Garrison | Build established: Bothacker-Gunner 10076 | -4/Garrison | Garrison Relay disabled 10177 | -4/Garrison | Spotted B-86 Titan 10196 | -4/Garrison | Triggered checkpoint 10231 | -4/Garrison | Triggered checkpoint 10235 | -4/Garrison | Destroyed B-86 Titan 10249 | -4/Garrison | Lost 3 parts (1p1u1w) 10283 | -4/Garrison | Triggered checkpoint 10344 | -4/Garrison | Destroyed 7 combat bots 10347 | -4/Garrison | Lost 4 parts (2u2w) 10380 | -4/Garrison | Triggered checkpoint 10542 | -4/Garrison | Build established: Scavenger-Gunner 10584 | -4/Garrison | Discovered new exit (range 10) 10641 | -4/Garrison | Garrison Relay disabled 10656 | -4/Garrison | Triggered checkpoint 10796 | -4/Garrison | Triggered checkpoint 10880 | -4/Garrison | Garrison Relay disabled 10989 | -4/Garrison | Discovered new exit (range 8) 11135 | -4/Garrison | Build established: Scavenger-Mutant 11206 | -4/Garrison | Spotted B-86 Titan 11265 | -4/Garrison | Found Adv. Powered Armor 11270 | -4/Garrison | Found Adv. Powered Armor 11608 | -4/Garrison | Discovered new exit (range 5) 11626 | -4/Garrison | Expanded RIF knowledge: Coupler Efficiency 11663 | -4/Garrison | Garrison Relay disabled 11788 | -4/Garrison | Entered Research 11788 | -3/Research | Accompanied by 1 ally 11788 | -3/Research | Evolved 2 slots: Power x1, Utility x1 11955 | -3/Research | Build established: Scavenger-Gunner 12179 | -3/Research | Spotted B-86 Titan 12222 | -3/Research | Garrison activated, responded to threat 12235 | -3/Research | Assimilated Titan 8a with formatsys_high 12288 | -3/Research | First assault squad dispatched 12482 | -3/Research | Found Prototype Processor 12482 | -3/Research | Identified Spectral Analyzer 12525 | -3/Research | Repaired Adv. Powered Armor 12631 | -3/Research | Discovered new exit (range 99) 12827 | -3/Research | Build established: Botlord-Mutant 13266 | -3/Research | Found System Purifier 13371 | -3/Research | Destroyed 11 combat bots 13521 | -3/Research | Build established: Botlord-Gunner 13835 | -3/Research | Found Fusion Bomb Launcher 13995 | -3/Research | Discovered new exit (range 24) 14082 | -3/Research | Entered Quarantine 14082 | -3/Quarantine | Accompanied by 1 ally 14332 | -3/Quarantine | First assault squad dispatched 14445 | -3/Quarantine | Destroyed 8 combat bots 14530 | -3/Quarantine | Found Alien Artifact 14530 | -3/Quarantine | Identified Transdimensional Reconstructor 14530 | -3/Quarantine | Warped through subspace 14653 | -3/Quarantine | Found Alien Artifact 14653 | -3/Quarantine | Identified Dimensional Node Initializer 14653 | -3/Quarantine | Initialized slip node 14656 | -3/Quarantine | Found Dimensional Node Initializer 14674 | -3/Quarantine | Found Alien Artifact 14708 | -3/Quarantine | Destroyed 8 combat bots 14713 | -3/Quarantine | Found Alien Artifact 14713 | -3/Quarantine | Identified Hpw. Transdimensional Reconstructor (x2) 14713 | -3/Quarantine | Warped through subspace 14717 | -3/Quarantine | Scanned by Researcher 14729 | -3/Quarantine | Warped through subspace 14983 | -3/Quarantine | Lost 3 parts (1p1u1w) 15001 | -3/Quarantine | Build established: Bothacker-Gunner 15363 | -3/Quarantine | Garrison activated, responded to threat 15402 | -3/Quarantine | Core integrity fell below 50% 15439 | -3/Quarantine | Destroyed 7 combat bots 15477 | -3/Quarantine | System corruption reached 10% 15549 | -3/Quarantine | Lost 4 parts (1u3w) 15657 | -3/Quarantine | Lost 3 parts (1p1u1w) 15671 | -3/Quarantine | Destroyed 10 combat bots 15710 | -3/Quarantine | Discovered new exit (range 15) 15715 | -3/Quarantine | High security lockdown imminent 15795 | -3/Quarantine | High security lockdown engaged 15842 | -3/Quarantine | Entered Research 15842 | -2/Research | Evolved 2 slots: Propulsion x1, Utility x1 15873 | -2/Research | Lost 13 parts (1p2n6u4w) 16009 | -2/Research | Identified exit to DSF 16113 | -2/Research | Build established: Scavenger-Mutant 16153 | -2/Research | Lost 4 parts (2n1u1w) 16273 | -2/Research | Lost 4 parts (1n3u) 16315 | -2/Research | Found Fusion Bomb Launcher 16318 | -2/Research | Found Fusion Bomb Launcher 16371 | -2/Research | First assault squad dispatched 16380 | -2/Research | Identified exit to Testing 16520 | -2/Research | System corruption reached 10% 16552 | -2/Research | Lost 4 parts (2n2w) 16662 | -2/Research | Spotted Striker 16663 | -2/Research | Cargo convoy interrupted 16670 | -2/Research | Spotted B-90 Cyclops 16696 | -2/Research | Core integrity fell below 50% 16725 | -2/Research | Spotted B-90 Cyclops 16727 | -2/Research | Core integrity fell below 20% 16749 | -2/Research | Entered Testing 16760 | -2/Testing | Lost 22 parts (3p4n10u5w) 16812 | -2/Testing | Protovariant out of control (PP-QOT46D9XLZ) 16812 | -2/Testing | Unleashed a protovariant (PP-QOT46D9XLZ) 16841 | -2/Testing | Spotted PP-QOT46D9XLZ 16874 | -2/Testing | Spotted PP-YT79KWGV21 16899 | -2/Testing | Destroyed by G-73 Enforcer with Phase Gun Last Messages --------------- G-34 Mercenary Tier: 1 Time: 81 Initiate build sequence. >>Build Building G-34 Mercenary... ETC: 81 16869_ ALERT: Unauthorized use of fabrication network. Dispatching investigation squad. 16872_ ALERT: Hostile activity reported, dispatching reinforcements to area. 16877_ W-44 Eye distress signal alerts nearby ally. 16886_ System corrupted: Matter fused (-6). 16890_ Detecting nearby Garrison Access. 16891_ Slug penetrates C-65 Expert. 16891_ C-65 Expert calibrates the Meson Extractor. 16893_ Slug penetrates Fabricator. 16893_ Fabricator disabled. 16893_ Slug penetrates Wall. 16896_ Acquired Adv. Targeting Computer. Map ----- +----------------------------------------------------+ | ?????????????????????????????????????????????????? | | ?????????????????????????????????????????????????? | | ?????????????????????????????????????????????????? | | ?????????????????????????????????????????????????? | | ?????????????????????????????????????????????????? | | ?????????????????????????????????????????????????? | | ?????????????????????????????????????????????????? | | ?????????????????????????????????????????????????? | | ????????????#######+###??????????????????????????? | | ????????????? ??????????????????????????? | | ?????????????? ???????????????????????????? | | ??????????????? ##+###########??????????????? | | ???????????????? # #??????????????? | | ????????????????# # #??????????????? | | ????????????????# # #??????????????? | | ?????????######## # " #??????????????? | | ?????????# # """ "" " #??????????????? | | ?????????# # """"""" #??????????????? | | ?????????# + """""" #??????????????? | | ?????????# # """"""""" #??????????????? | | ?????????# # """ #???????#??????? | | ?????????# # #### #??????? | | ########## # / #??????? | | # # #??????? | | #######g###### #??????? | | # @ g #???# """ #??????? | | "" """ """ """ "" # """#???# """ ????? | | ?" """ """ """ "" # """#???# """ ??? | | ?? """ """ """ # """#???# ?? | | ? "" # """#???# ? | | ? # """#???# #####????#???? | | ? #! = """#???? ?????????????? | | ?################ # """#???? ?????????????? | | ???????? ! ??# + #???? ?????????????? | | ????????? ?# ##+###########/####?????????? | | ????????? ?# #????? ??????????? | | ?????????"" """ # #????? #?????????? | | ?????????"" """ # #?????? #?????????? | | ?????????"" """ + #?????? #?????????? | | ????? # #??????? #?????????? | | ???? """ # ####??????? ??????????? | | ???? "" "" """?# #??????????? = ???????????? | | ????????"" """?# #??????????? ????????????? | | ????????" ??# #############+########??????? | | ???????? ?? ??# "%" #??????? | | ???????????""???# = " #??????? | | ????????????"???# #??????? | | ????????????????# #??????? | | ????????????????###################### #??????? | | ?????????????????????????????????????# #??????? | +----------------------------------------------------+ Best States ------------- Heat Dissipation 87 Coolant Potential 100 Energy Generation 61 Energy Capacity 645 Matter Stores 550 Matter Capacity 550 Sight Range 24 Robot Scan Range 20 Terrain Scan Density 210 Jamming Range 14 Armor Coverage 800 Resistance: KI 20 Resistance: TH 35 Resistance: EX 20 Resistance: EM 20 Resistance: I 20 Resistance: S 20 Resistance: P 20 Propulsion Shielding 66 Utility Shielding 66 Weapon Cycling 25 Evasion (%) 64 Targeting Accuracy 16 Target Analysis 12 Core Analysis 6 Armor Integrity Analysis 30 Recoil Reduction 4 Matter Filtering 50 Kinecelleration 30 Offensive Hacking 20 Defensive Hacking 10 Relay Coupler Types 3 Relay Coupler Value 100 Authchip Count 3 Item Schematics ----------------- Arm. Wheel | -9/Storage | Hacked Imp. Shield Generator | -9/Recycling | Hacked Adv. Heavy Siege Treads | -3/Quarantine | Hacked Imp. Energy Mantle | -3/Quarantine | Reported Com. HERF Cannon | -3/Quarantine | Reported Adv. Powered Armor | -3/Quarantine | Reported Adv. Gravity Neutralizer | -3/Quarantine | Reported Exp. Optical Array | -3/Quarantine | Reported Exp. Matter Compressor | -3/Quarantine | Reported Exp. Target Analyzer | -3/Quarantine | Reported Adv. Targeting Computer | -3/Quarantine | Reported Adv. Matter Compressor | -3/Quarantine | Reported Hvy. Dispersion Rifle | -3/Quarantine | Reported Prc. Phase Gun | -3/Quarantine | Archive Com. Particle Reactor | -3/Quarantine | Archive Helical Railgun | -3/Quarantine | Archive Robot Schematics ------------------ G-34 Mercenary | -9/Storage | Hacked Fabricated ------------ Adv. Coolant Injector | x2 | -4/Factory | Preloaded Alien Tech Used ----------------- Transdimensional Reconstructor Dimensional Node Initializer High-powered Transdimensional Reconstructor Achievements -------------- None Challenges ------------ None Game ------ Seed AlloySwarmExoskeleton Manual? 0 Play Time 03:49:06 Cumulative 170.2 hours Start 2022.04.24 @ 13:23:32 End 2022.04.24 @ 22:29:16 Sessions 3 Manual Loads 0 Difficulty Adventurer Special Mode None Game No. 35 Rogue 7 Adventurer 27 Explorer 1 Win Type - Total 11 Types 4/0/3/4/0/0/0/0/0 Lore% 53 Gallery% 62 Achievement% 66 Wizard Run 0 Options --------- ASCII 0 Keyboard 0 Movement Numpad Keybinds 0 Fullscreen 2 Font 18/SmallcapsGlow Map View 76x50 Tactical HUD 1 Map Filters NONE Filters NONE Steam 1 RUN: 97295836-b29d-4d94-9dc8-d77369c6a08f